Cogmind - Beta 15 @@@ ROGUE MODE // 2025.08.05 @ 21:04:15 Player: OG DANIEL Result: Destroyed by G-47 Trooper with Particle Gun Performance ------------- Evolutions (0) 0 Regions Visited (2) 400 Robots Destroyed (23) 115 Value Destroyed (569) 569 Prototype IDs (0) 0 Alien Tech Used (0) 0 Bonus (0) 0 TOTAL SCORE: 1084 Bonus ------- None Cogmind --------- Core Integrity 0/250 Matter 229/300 Energy 96/100 System Corruption 2% Temperature Cool (68) Movement Rolling (110) Ox2 Location -10/Mines Parts ------- > --- POWER (1) -------- (None) > --- PROPULSION (2) --- Wheel > --- UTILITY (2) ------ Large Storage Unit > --- WEAPON (2) ------- Assault Rifle Battle Cannon > --- INVENTORY (15) --- Light Treads Aluminum Leg Aluminum Leg Small Storage Unit Small Laser Small Laser Assault Rifle Mining Laser Peak State ------------ > --- POWER ------------ Ion Engine > --- PROPULSION ------- Light Treads Light Treads > --- UTILITY ---------- Small Storage Unit Hacking Suite > --- WEAPON ----------- Medium Laser Assault Rifle > --- INVENTORY -------- Light Ion Engine Aluminum Leg Aluminum Leg Wheel Wheel Medium Laser [Rating: 9] Favorites ----------- Power Ion Engine Engine Ion Engine Propulsion Light Treads Treads Light Treads Wheel Wheel Utility Small Storage Unit Storage Small Storage Unit Hackware Hacking Suite Weapon Assault Rifle Energy Gun Medium Laser Ballistic Gun Assault Rifle Ballistic Cannon Battle Cannon Special Weapon Mining Laser Build | -11 -10 -10 ------- Run | Yrd Mat Min Slots Evolved . | . . . Power . | . . . Propulsion . | . . . Utility . | . . . Weapon . | . . . Parts Attached 23 | 7 13 3 Power 5 | 2 2 1 Engine 5 | 2 2 1 Core . | . . . Reactor . | . . . Propulsion 4 | 2 2 . Treads 2 | . 2 . Leg . | . . . Wheel 2 | 2 . . Hover . | . . . Flight . | . . . Utility 3 | 1 2 . Device . | . . . Storage 2 | 1 1 . Processor . | . . . Hackware 1 | . 1 . Protection . | . . . Artifact . | . . . Weapon 11 | 2 7 2 Energy Gun 5 | 1 4 . Energy Cannon . | . . . Ballistic Gun 4 | 1 2 1 Ballistic Cannon 1 | . . 1 Launcher . | . . . Special Weapon 1 | . 1 . Impact Weapon . | . . . Slashing Weapon . | . . . Piercing Weapon . | . . . Special Melee Weapon . | . . . Unidentified Prototypes . | . . . Parts Lost 6 | . 5 1 Power 2 | . 1 1 Propulsion 2 | . 2 . Utility 1 | . 1 . Weapon 1 | . 1 . Highest Loss Streak 4 | . 4 1 To Critical Strikes . | . . . Average Backups 7 | 3 7 7 Power . | . 1 . Propulsion 3 | 2 4 3 Utility . | . . 1 Weapon 2 | . 2 3 Tool/Special . | . . . Unused Backups 6 | . 2 4 Power 1 | . 1 . Propulsion 3 | . . 3 Utility . | . . . Weapon 2 | . 1 1 Tool/Special . | . . . Average Slot Usage (%) 88 | . 92 67 Engine 13 | . 13 13 Treads 21 | . 25 . Wheel 3 | . 1 14 Storage 14 | . 14 14 Hackware 8 | . 9 . Energy Gun 14 | . 15 9 Ballistic Gun 12 | . 12 12 Peak Build Rating 9 | 5 9 6 Average Rating 7 | 4 8 5 On Entrance 2 | . 5 3 Naked Turns . | . . . Heaviest Build 28 | 14 26 28 Greatest Support 40 | 20 40 10 Greatest Overweight (x) 6 | 1 6 2 Average Overweight (x) . | . . 2 Largest Inventory Capacity 15 | 8 15 15 Average Capacity 9 | 6 9 15 Most Carried 10 | 8 10 8 Average Carried 7 | 4 7 7 Final Capacity 15 | 8 15 15 Final Carried 9 | 8 9 8 Class Distribution -------------------- 100% | Mutant Dominant Class ---------------- Mutant | -10/Materials Mutant | -10/Mines Resources | -11 -10 -10 ----------- Run | Yrd Mat Min Matter Collected 552 | 260 282 10 Remotely . | . . . Salvage Created 754 | 74 610 70 Parts 45 | 2 38 5 Haulers Intercepted . | . . . Recyclers Shooed 1 | 1 . . Parts Field Recycled . | . . . Retrieved Matter . | . . . Parts Self-Destructed . | . . . Prevented . | . . . Kills | -11 -10 -10 ------- Run | Yrd Mat Min Combat Hostiles Destroyed 16 | . 15 1 Guns 14 | . 13 1 AOE 2 | . 2 . Classes Destroyed 6 | 1 5 . Worker 4 | . 2 2 Builder 1 | . 1 . Recycler 1 | 1 . . Operator 1 | . 1 . Swarmer 3 | . 3 . Grunt 13 | . 12 1 Best Kill Streak 5 | 1 5 2 Combat Bots Only 3 | . 3 1 Max Kills in Single Turn 3 | 1 3 2 Gunslinging . | . . . Exploded 2 | . 2 . Melee . | . . . Uniques/NPCs Destroyed . | . . . Combat | -11 -10 -10 -------- Run | Yrd Mat Min Hostile Shots Fired 113 | . 95 18 Missed 33 | . 30 3 Hits 80 | . 65 15 Projectile 80 | . 65 15 Critical Strikes 1 | . . 1 Damage Taken 1132 | . 928 204 Core 264 | . 210 54 Absorbed by Shields . | . . . Core Remaining (%) 100 | 100 . . Volleys Fired 67 | 4 55 8 Largest 2 | 2 2 2 Hottest 120 | 70 120 53 Shots Fired 133 | 8 110 15 Gun 125 | 8 109 8 Cannon 7 | . . 7 Launcher . | . . . Special 1 | . 1 . Kinetic 67 | 4 49 14 Thermal 66 | 4 61 1 Explosive . | . . . Electromagnetic . | . . . Robot Hit Streak 14 | 3 14 5 Robot Miss Streak 2 | 1 2 2 Penetration Max . | . . . Secondary Targets . | . . . Shots Hit Robots 91 | 6 75 10 Core Hits 39 | 2 32 5 Critical Kills . | . . . Critical Parts Destroyed . | . . . Critical Strikes 4 | . 4 . Burn 4 | . 4 . Melee Attacks . | . . . Impact . | . . . Slashing . | . . . Piercing . | . . . Sneak Attacks . | . . . Combat Hostiles . | . . . Follow-up Attacks . | . . . Damage Inflicted 1458 | 77 1184 197 Guns 1049 | 77 876 96 Cannons 101 | . . 101 Explosions 308 | . 308 . Melee . | . . . Ramming . | . . . Kinetic 635 | 27 422 186 Thermal 823 | 50 762 11 Explosive . | . . . Electromagnetic . | . . . Impact . | . . . Slashing . | . . . Piercing . | . . . Highest Corruption 2 | . 2 2 Average Corruption 2 | . 2 2 Corruption Purged . | . . . Corruption Blocked . | . . . Effects 2 | . . 2 Energy Discharges 1 | . . 1 Data Loss (minor) 1 | . . 1 Overload Shots . | . . . Overflow Damage 61 | . 61 . Projectiles . | . . . Explosions 61 | . 61 . Melee . | . . . Knockbacks 1 | . . 1 Impact . | . . . Kinetic 1 | . . 1 Secondary . | . . . Self-Inflicted Damage 198 | . 198 . Shots 2 | . 2 . Rammed . | . . . Targets Rammed . | . . . Kicked . | . . . Crushed . | . . . Highest Temperature 216 | 36 216 67 Average Temperature 43 | 19 46 30 Received Heat Transfer 501 | . 369 132 Siege Activations . | . . . Martial Activations . | . . . Shielding Activations . | . . . Robots Disrupted . | . . . Combat Hostiles . | . . . Robots Corrupted . | . . . Combat Hostiles . | . . . Parts Fried . | . . . Impact Corruptions . | . . . Robots Melted . | . . . Combat Hostiles . | . . . Parts Melted 3 | . 3 . Heat Transferred 1857 | 148 1684 25 Parts Sabotaged . | . . . Parts Stolen . | . . . Parts Stripped . | . . . Power Chain Reactions . | . . . Alert | -11 -10 -10 ------- Run | Yrd Mat Min Maximum Alert Level . | . . . Low Security (%) 100 | 100 100 100 Level 1 . | . . . Level 2 . | . . . Level 3 . | . . . Level 4 . | . . . Level 5 . | . . . High Security . | . . . Max Security . | . . . Peak Influence 196 | 5 196 75 Initial 70 | . . 70 Average 49 | . 55 47 Influence Increases 554 | 5 519 30 Destroy 0b10 Robot/C 320 | . 300 20 Destroy 0b10 Robot/NC 35 | 5 20 10 Destroy Leader 60 | . 60 . Successful Hack 10 | . 10 . Disable Machine 60 | . 60 . Destroy Structure 24 | . 24 . Lose Combat Pursuer 45 | . 45 . Influence Decreases 524 | 5 339 180 Entered New Map 110 | . . 110 Time Decay 354 | 5 289 60 Lost Part 60 | . 50 10 Squads Dispatched 3 | . 3 . Investigation 3 | . 3 . Extermination . | . . . Reinforcement . | . . . Assault . | . . . Garrison . | . . . Intercept . | . . . Searches Triggered . | . . . Construction Impeded . | . . . Haulers Reinforced . | . . . Active Scanning Responses . | . . . Cargo Convoy Interrupts . | . . . Stealth | -11 -10 -10 --------- Run | Yrd Mat Min Distress Signals . | . . . Communications Jammed . | . . . Distress Signals . | . . . Times Spotted 21 | . 19 2 Peak Tracking Total 3 | . 3 2 Tactical Retreats 2 | . 2 . Traps | -11 -10 -10 ------- Run | Yrd Mat Min Traps Triggered 1 | . 1 . Indirectly . | . . . Trap Hack Attempts . | . . . Triggered . | . . . Disarmed 1 | . 1 . Reprogrammed . | . . . Reused . | . . . Traps Extracted . | . . . Installed . | . . . Triggered . | . . . Machines | -11 -10 -10 ---------- Run | Yrd Mat Min Machines Disabled 4 | . 4 . Max in Single Turn 4 | . 4 . Machines Repaired . | . . . Machines Dismantled . | . . . Machines Sabotaged . | . . . Overloaded Fab Kills . | . . . Hacking | -11 -10 -10 --------- Run | Yrd Mat Min Machines Accessed 4 | . 4 . Terminals 2 | . 2 . Fabricators . | . . . Repair Stations . | . . . Recycling Units 2 | . 2 . Scanalyzers . | . . . Garrison Access . | . . . Total Hacks 15 | . 15 . Successful 10 | . 10 . Failed 5 | . 5 . Catastrophic . | . . . Database Lockouts . | . . . Manual 6 | . 6 . Terminals 11 | . 11 . Fabricators . | . . . Repair Stations . | . . . Recycling Units 4 | . 4 . Scanalyzers . | . . . Garrison Access . | . . . Terminal Hacks 4 | . 4 . Emergency Access Points 1 | . 1 . Alert Level 1 | . 1 . Locate Traps 1 | . 1 . Disarm Traps 1 | . 1 . Fabricator Hacks . | . . . Repair Station Hacks . | . . . Recycling Unit Hacks 3 | . 3 . Recycle Component 1 | . 1 . Report Inventory 1 | . 1 . Retrieve Matter 1 | . 1 . Scanalyzer . | . . . Garrison Access Hacks . | . . . Unauthorized Hacks 3 | . 3 . Terminals 2 | . 2 . Botnet 2 | . 2 . Fabricators . | . . . Repair Stations . | . . . Recycling Units 1 | . 1 . Mask 1 | . 1 . Scanalyzers . | . . . Garrison Access . | . . . Data Cores Recovered 1 | . 1 . Used . | . . . Hacking Detections 3 | . 3 . Full Trace Events 3 | . 3 . Feedback Events . | . . . Feedback Blocked . | . . . Robot Schematics Acquired . | . . . Robots Built . | . . . Authchips . | . . . Time . | . . . Total Robot Build Rating . | . . . Part Schematics Acquired . | . . . Parts Built . | . . . Authchips . | . . . Time . | . . . Total Part Build Rating . | . . . Parts Repaired . | . . . Time . | . . . Parts Recycled 1 | . 1 . Recycled Matter . | . . . Retrieved Matter . | . . . Retrieved Components . | . . . Parts Scanalyzed . | . . . Part Schematics Acquired . | . . . Parts Damaged . | . . . Bothacking | -11 -10 -10 ------------ Run | Yrd Mat Min Used RIF Installer . | . . . Robots Hacked . | . . . Non-combat . | . . . Combat . | . . . Robot Hacks Applied . | . . . Relay Couplers Released . | . . . Fabnet Peak Effective % . | . . . Robots Rewired . | . . . Allies Hacked . | . . . Hacks Repelled . | . . . Allies | -11 -10 -10 -------- Run | Yrd Mat Min Total Allies . | . . . Largest Group . | . . . Highest-Rated Group . | . . . Highest-Rated Ally . | . . . Total Orders . | . . . Ally Attacks . | . . . Total Damage . | . . . Kills . | . . . Allies Corrupted . | . . . Allies Melted . | . . . Intel | -11 -10 -10 ------- Run | Yrd Mat Min Active Infowar (turns) . | . . . Robot Analysis Total . | . . . Derelict Logs Recovered 1 | . . 1 Drone Launches . | . . . Drone Recoveries . | . . . Exploration | -11 -10 -10 ------------- Run | Yrd Mat Min Turns Passed 1012 | 96 786 130 Spaces Moved 512 | 75 353 84 Core 7 | 5 2 . Treads 305 | . 305 . Legs . | . . . Wheels 200 | 70 46 84 Hover . | . . . Flight . | . . . Fastest Speed 50 | 50 95 110 Average Speed 136 | 86 153 110 Slowest Speed 350 | 95 350 110 Overloaded Moves . | . . . Propulsion Burnouts . | . . . Robots Hopped . | . . . Potential Cave-ins . | . . . Cave-ins Triggered . | . . . Exploration Rate (%) 25 | 5 51 21 Regions Visited 2 Branch Regions 1 Pre-discovered Areas 1 | . . 1 Known Exits Taken . | . . . Unknown Exits Taken 2 | 1 1 . Scrap Searched . | . . . Spaces Dug 1 | . 1 . Terrain Destroyed 36 | . 36 . Melee . | . . . Projectile 1 | . 1 . AOE 35 | . 35 . Terrain Rammed . | . . . Walls Destroyed . | . . . Machines Disabled . | . . . Actions | -11 -10 -10 --------- Run | Yrd Mat Min Total 691 | 95 487 109 Wait 60 | 1 47 12 Move 510 | 74 352 84 Hop . | . . . Pick Up 15 | 8 7 . Fast Attach 11 | 5 4 2 Attach 4 | 1 2 1 Detach 2 | . 1 1 Swap 10 | 1 9 . Drop 12 | 1 10 1 Fire 67 | 4 55 8 Melee . | . . . Ram . | . . . Kick . | . . . Crush . | . . . Escape Stasis . | . . . Rewire . | . . . Trap . | . . . Miscellaneous . | . . . Route ------- -11/Scrapyard -10/Materials -10/Mines History --------- Turn | Location | Event 26 | -11/Scrapyard | Discovered new exit (range 16) 97 | -11/Scrapyard | Entered Materials 302 | -10/Materials | Build established: Mutant 592 | -10/Materials | Discovered new exit (range 14) 851 | -10/Materials | Core integrity fell below 50% 851 | -10/Materials | Core integrity fell below 20% 881 | -10/Materials | Lost 4 parts (1p2n1w) 883 | -10/Materials | Entered Mines 927 | -10/Mines | Learned location of Storage (-7) 959 | -10/Mines | A weapon hastily lodged in a ceiling crevice suddenly fell to the ground 1013 | -10/Mines | Destroyed by G-47 Trooper with Particle Gun Last Messages --------------- 00884_ Acquired Lgt. Ion Engine. 00886_ K-01 Serf collects debris. 00889_ K-01 Serf destroyed. 00891_ Acquired 10 matter. 00891_ K-01 Serf collects debris. 00927_ Acquired derelict log, extracted data. World map updated: -7/Storage. 00933_ System corrupted: Energy discharge (-46). 00958_ System corrupted: Component data lost. 00959_ A Battle Cannon has been hastily shoved under some rubble with a note attached: "To battle!" 00962_ Acquired Battle Cannon. 00979_ K-01 Serf collects debris. 01004_ G-47 Trooper knocked back. 01008_ K-01 Serf collects debris. 01010_ G-34 Mercenary destroyed. 01010_ K-01 Serf destroyed. 01011_ Lgt. Ion Engine destroyed. 01011_ Critical hit (Burn: +37). Map ----- +----------------------------------------------------+ | ????????????????????????????????# #??????????????? | | ????????????????????????????????# ######?????????? | | ????????????????????????????????# #?????????? | | ????????????????????????????????## ### #?????????? | | ??????????????????????????????#### #?????????????? | | ???????????????????????????#### ##????????????? | | ??????????????????????????## ##???????????? | | ???????????????????????#### ##??????????? | | ??????????????????????## #??????????? | | ?????????????????????## #??????????? | | ?????????????????????# ## #??????????? | | ?????????????????????# """" ### ##??????????? | | ?????????????????????## """" #?# #???????????? | | ??????????????????????## """" #?# #???????????? | | ???????????????????????## ##?# #???????????? | | ????????????????####????#### ##??# #???????????? | | ???????????????? #??????####????# #???????????? | | ????????????????# ?????? #?????# #???????????? | | ????????????????# #??????# #?????# #???????????? | | ?????????????#### #??????# #?????# ##### #?????? | | ????????????## ##???### #?????# #?????? | | ????????##### ##### ##????# ##### #?????? | | ????? $ ##=%= ##???# #???????????? | | ????????????## %%g%! ##### #???????????? | | ?????????????## % #???????????? | | ?????????###### ###@ #???????????? | | ?????????# ##?## # ####???????????? | | ?????????# #???# ## #??????????????? | | ?????# ## #???# ## #??????????????? | | ?????# ??## #???## ### #??????????????? | | ???????##?????# ##????#####? #??????????????? | | ??????????????# ##???????????###??????????????? | | ??????????????## ##?????????????????????????????? | | ???????????????####??????????????????????????????? | | ?????????????????????????????????????????????????? | | ?????????????????????????????????????????????????? | | ?????????????????????????????????????????????????? | | ?????????????????????????????????????????????????? | | ?????????????????????????????????????????????????? | | ?????????????????????????????????????????????????? | | ?????????????????????????????????????????????????? | | ?????????????????????????????????????????????????? | | ?????????????????????????????????????????????????? | | ?????????????????????????????????????????????????? | | ?????????????????????????????????????????????????? | | ?????????????????????????????????????????????????? | | ?????????????????????????????????????????????????? | | ?????????????????????????????????????????????????? | | ?????????????????????????????????????????????????? | | ?????????????????????????????????????????????????? | +----------------------------------------------------+ Best States ------------- Heat Dissipation 25 Energy Generation 10 Energy Capacity 250 Matter Stores 300 Matter Capacity 300 Sight Range 16 Terrain Scan Density 10 Evasion (%) 44 Recoil Reduction 2 Offensive Hacking 10 Item Schematics ----------------- None Robot Schematics ------------------ None Fabricated ------------ Nothing Repaired ---------- Nothing Alien Tech Used ----------------- None Achievements -------------- Party Time Challenges ------------ None Game ------ Seed InertialCatalystInterpreter Manual? 0 Play Time 00:12:45 Cumulative 30.1 hours Start 2025.08.05 @ 20:52:25 End 2025.08.05 @ 21:04:15 Sessions 1 Manual Loads 0 Difficulty Rogue Special Mode None Game No. 81 Rogue 81 Adventurer 0 Explorer 0 Win Type - Total 0 Types 0/0/0/0/0/0/0/0/0/0 Lore% 9 Gallery% 21 Achievement% 21 Wizard Run 0 Options --------- Layout 1 ASCII 0 Keyboard 0 Movement Numpad Keybinds 0 Fullscreen 0 Font 20/SmallcapsGlow Map View 50x35 Zoom Use 0% Tactical HUD 1 Map Filters NONE Filters NONE Steam 1 RUN: d193c402-0db6-40e5-bd75-96bb9dbb63d7